bitfinex-derivatives/quotes_ETHF0:USTF0_20250929
["timestamp","ask_amount","ask_price","bid_price","bid_amount"]
[1759130726826,0.78532423,4093.8,4093.7,0.55880134]
[1759130728029,0.78532423,4093.8,4093.7,0.22380134]
[1759130728430,0.78532423,4093.8,4093.7,0.55880134]
[1759130729131,0.78532423,4093.8,4093.7,0.22320134]
[1759130729332,0.78532423,4093.8,4093.7,0.00220134]
[1759130739338,1.22483423,4093.8,4093.7,0.00220134]
[1759130739839,0.78532423,4093.8,4093.7,0.00220134]
[1759130740233,1.31269633,4093.8,4093.7,0.00220134]
[1759130742342,1.31269633,4093.8,4093.7,0.44172134]
[1759130742547,1.31269633,4093.8,4093.7,0.66272134]
[1759130743441,1.31269633,4093.8,4093.7,0.99772134]
[1759130743940,1.31269633,4093.8,4093.7,0.00220134]
[1759130745448,1.31269633,4093.8,4093.7,0.00220134]
[1759130753651,1.75220633,4093.8,4093.7,0.00220134]
[1759130758257,2.64355213,4093.8,4093.7,0.00220134]
[1759130761953,2.20404213,4093.8,4093.7,0.00220134]
[1759130763350,2.20404213,4093.8,4093.7,0.44173134]
[1759130763550,2.45004213,4093.8,4093.7,0.44173134]
[1759130763949,2.20404213,4093.8,4093.7,0.98133134]
[1759130764154,2.45004213,4093.8,4093.7,0.98133134]
[1759130764757,2.45004213,4093.8,4093.7,0.65893134]
[1759130765151,2.45004213,4093.8,4093.7,0.21940134]
[1759130765658,2.45004213,4093.8,4093.7,0.65893134]
[1759130766762,2.20404213,4093.8,4093.7,1.20683134]
[1759130767067,2.45004213,4093.8,4093.7,1.20683134]
[1759130767355,2.45004213,4093.8,4093.7,0.88443134]
[1759130767560,2.45004213,4093.8,4093.7,0.65893134]
[1759130769567,2.45004213,4093.8,4093.7,1.20683134]
[1759130774270,1.55869633,4093.8,4093.7,1.20683134]
[1759130774569,2.45004213,4093.8,4093.7,1.20683134]
[1759130775271,2.45004213,4093.8,4093.7,0.65893134]
[1759130775671,2.20404213,4093.8,4093.7,0.65893134]
[1759130775863,2.45004213,4093.8,4093.7,0.65893134]
[1759130776571,2.45004213,4093.8,4093.7,0.44173134]
[1759130776765,2.45004213,4093.8,4093.7,0.97573134]
[1759130777163,2.20404213,4093.8,4093.7,0.97573134]
[1759130777368,2.45004213,4093.8,4093.7,1.18573134]
[1759130777670,2.20404213,4093.8,4093.7,1.18573134]
[1759130777871,2.45004213,4093.8,4093.7,1.18573134]
[1759130778571,2.45004213,4093.8,4093.7,0.66673134]
[1759130779273,2.45004213,4093.8,4093.7,0.44173134]
[1759130780572,2.45004213,4093.8,4093.7,0.00220134]
[1759130781879,2.45004213,4093.8,4093.7,0.22720134]
[1759130782675,2.45004213,4093.8,4093.7,0.53620134]
[1759130783972,2.45004213,4093.8,4093.7,0.97573134]
[1759130784782,2.45004213,4093.8,4093.7,0.53620134]
[1759130784973,2.20404213,4093.8,4093.7,0.53620134]
[1759130785275,2.45004213,4093.8,4093.7,0.53620134]
[1759130785879,2.45004213,4093.8,4093.7,0.74620134]
[1759130786672,2.64356213,4093.8,4093.7,0.74620134]
[1759130786872,2.88956213,4093.8,4093.7,0.74620134]
[1759130787776,2.88956213,4093.8,4093.7,0.22720134]
[1759130789183,2.88956213,4093.8,4093.7,0.53630134]
[1759130789882,2.88956213,4093.8,4093.7,0.22720134]
[1759130790682,2.88956213,4093.8,4093.7,0.00220134]
[1759130792283,2.45004213,4093.8,4093.7,0.00220134]
[1759130792481,2.88956213,4093.8,4093.7,0.00220134]
[1759130792880,2.64356213,4093.8,4093.7,0.00220134]
[1759130793182,3.2078,4094.2,4094.1,0.43948]
[1759130793374,3.9,4094.2,4093.9,0.43951]
[1759130793576,0.32595257,4094.5,4094.4,0.43946]
[1759130793782,0.2229,4094.9,4094.5,0.1359]
[1759130794084,1.31067384,4094.8,4094.7,0.7365]
[1759130794284,1.31269451,4094.8,4094.7,0.7365]
[1759130795076,1.31269451,4094.8,4094.7,0.5141]
[1759130795280,0.4462,4093.9,4093.8,3.7219]
[1759130795484,1.6739458,4093.9,4093.8,3.7219]
[1759130797982,1.6739458,4093.9,4093.8,3.9443]
[1759130805184,0.8913458,4093.9,4093.8,3.9443]
[1759130806290,1.4510458,4093.9,4093.8,3.9443]
[1759130807391,0.8913458,4093.9,4093.8,3.9443]
[1759130807590,1.1146458,4093.9,4093.8,3.9443]
[1759130807791,1.4510458,4093.9,4093.8,3.9443]
[1759130808086,0.43948,4094.3,4094.1,0.3091]
[1759130808290,1.45306647,4094.8,4094.7,0.7365]
[1759130808589,1.64363234,4094.8,4094.7,0.7365]
[1759130809880,1.98003234,4094.8,4094.7,0.7365]
[1759130810176,2.20293234,4094.8,4094.7,0.7365]
[1759130811195,1.67596647,4094.8,4094.7,0.7365]
[1759130818191,0.78462067,4094.8,4094.7,0.7365]
[1759130818394,2.34277916,4094.8,4094.7,0.7365]
[1759130820094,0.7414,4094.5,4094.4,3.5199]
[1759130820395,2.14937941,4094.5,4094.4,3.2078]
[1759130820899,2.01817941,4094.5,4094.4,3.7248]
[1759130821994,0.4268,4094.5,4094.4,3.9492]
[1759130822192,0.5253,4094.7,4094.6,0.7414]
[1759130822400,0.4567,4094.7,4094.6,0.7414]
[1759130822586,0.2107,4094.7,4094.6,0.7414]
[1759130822892,0.00202067,4094.8,4094.7,0.7414]
[1759130823296,0.52981476,4094.8,4094.7,0.7414]
[1759130824089,2.30199417,4094.8,4094.7,0.7414]
[1759130824495,0.52981476,4094.8,4094.7,0.7414]
[1759130824893,0.74051476,4094.8,4094.7,0.7414]
[1759130825699,0.52981476,4094.8,4094.7,0.7414]
[1759130826701,0.74051476,4094.8,4094.7,0.7414]
[1759130830101,1.27121476,4094.8,4094.7,0.7414]
[1759130831501,1.71063476,4094.8,4094.7,0.7414]
[1759130832889,1.71063476,4094.8,4094.7,1.18083]
[1759130833298,0.52981476,4094.8,4094.7,0.7414]
[1759130833498,0.96923476,4094.8,4094.7,1.18083]
[1759130833802,0.96923476,4094.8,4094.7,0.7414]
[1759130833998,1.19053476,4094.8,4094.7,0.7414]
[1759130835601,0.96923476,4094.8,4094.7,0.7414]
[1759130835802,1.19053476,4094.8,4094.7,0.7414]
[1759130837108,1.74873476,4094.8,4094.7,0.7414]
[1759130839803,0.75111476,4094.8,4094.7,0.7414]
[1759130840112,1.19053476,4094.8,4094.7,0.7414]
[1759130840703,1.52933476,4094.8,4094.7,0.7414]
[1759130840998,2.77951417,4094.8,4094.7,0.7414]
[1759130845513,2.77951417,4094.8,4094.7,0.517]
[1759130845713,1.18354,4094.6,4094.5,0.7794]
[1759130846011,1.71133409,4094.6,4094.5,0.7794]
[1759130847514,1.71133409,4094.6,4094.5,1.21885]
[1759130848313,1.71133409,4094.6,4094.5,1.44455]
[1759130848617,0.7441,4095.3,4095.2,0.7591]
[1759130848915,3.9519,4096.0,4095.9,0.7591]
[1759130849715,3.95438437,4096.0,4095.9,0.7591]
[1759130853112,3.95438437,4096.0,4095.9,0.5334]
[1759130853310,0.74658437,4096.0,4095.9,0.5334]
[1759130857519,0.87388437,4096.0,4095.9,0.5334]
[1759130859616,0.4296,4095.3,4095.2,3.2078]
[1759130859817,0.4296,4095.3,4094.4,1.75418818]
[1759130859818,0.7441,4094.8,4094.7,3.2078]
[1759130860025,2.02087941,4094.8,4094.7,3.2078]
[1759130860218,2.02087941,4094.8,4094.7,3.4161]
[1759130860412,2.02087941,4094.8,4094.7,3.7412]
[1759130860413,1.77487941,4094.8,4094.7,3.7412]
[1759130860618,2.02087941,4094.8,4094.7,3.7412]
[1759130861118,0.4296,4094.8,4094.7,3.9669]
[1759130861424,0.7441,4094.8,4094.7,3.9669]
[1759130861925,0.7441,4094.8,4094.7,3.2078]
[1759130862522,0.7441,4094.8,4094.7,3.5329]
[1759130862726,0.7441,4094.8,4094.7,3.7412]
[1759130866226,1.77487941,4094.8,4094.7,3.7412]
[1759130867833,1.77487941,4094.8,4094.7,3.9669]
[1759130869330,1.77487941,4094.8,4094.7,3.7412]
[1759130869526,1.77487941,4094.8,4094.7,3.9669]
[1759130870330,1.77487941,4094.8,4094.7,3.2078]
[1759130873136,1.77487941,4094.8,4094.7,3.5329]
[1759130874634,1.77487941,4094.8,4094.7,0.3251]
[1759130875033,0.7624,4094.4,4094.3,0.5247]
[1759130875231,2.47863941,4094.4,4094.3,0.5247]
[1759130876134,2.47863941,4094.4,4094.3,0.7345]
[1759130876333,0.43945,4094.6,4094.5,0.8593]
[1759130876537,0.68545,4094.6,4094.5,0.8593]
[1759130876734,0.43942,4094.8,4094.6,0.311]
[1759130876942,0.43942,4094.8,4094.7,0.7345]
[1759130877238,0.246,4095.0,4094.7,0.7345]
[1759130877239,1.79317941,4095.7,4095.6,0.7345]
[1759130877428,3.00161541,4095.7,4095.6,0.7345]
[1759130878140,0.68532,4095.7,4095.6,0.7345]
[1759130878446,1.32963738,4095.7,4095.6,0.7345]
[1759130879929,1.54413738,4095.7,4095.6,0.7345]
[1759130880139,1.20178,4095.1,4095.0,0.5483]
[1759130880439,2.09209738,4095.1,4095.0,0.5483]
[1759130880640,1.76139738,4095.1,4095.0,0.8593]
[1759130882036,2.09209738,4095.1,4095.0,0.8593]
[1759130883738,2.09209738,4095.1,4095.0,0.311]
[1759130883938,2.09209738,4095.1,4094.7,3.7325]
[1759130883939,1.20182,4094.8,4094.7,3.7325]
[1759130884147,2.09213738,4094.8,4094.7,3.2078]
[1759130884447,2.09213738,4094.8,4094.7,3.4215]
[1759130884646,2.09213738,4094.8,4094.7,3.7325]
[1759130885444,2.09213738,4094.8,4094.7,3.9423]
[1759130885649,2.33813738,4094.8,4094.7,3.9423]
[1759130885851,2.00743738,4094.8,4094.7,3.9423]
[1759130886648,1.76143738,4094.8,4094.7,3.9423]
[1759130887643,2.09213738,4094.8,4094.7,3.9423]
[1759130888938,1.76143738,4094.8,4094.7,3.9423]
[1759130890048,2.09213738,4094.8,4094.7,3.9423]
[1759130890953,1.76143738,4094.8,4094.7,3.9423]
[1759130891950,1.32968738,4095.2,4095.1,0.4235]
[1759130892250,1.85447168,4095.2,4095.1,0.7345]
[1759130892456,0.9641543,4095.2,4095.1,0.7345]
[1759130892662,1.85447168,4095.2,4095.1,0.7345]
[1759130894751,2.60817168,4095.2,4095.1,0.5247]
[1759130894956,1.20121,4094.8,4094.7,3.9402]
[1759130895155,2.09152738,4094.8,4094.7,3.9402]
[1759130895661,1.65211738,4094.8,4094.7,3.9402]
[1759130895961,1.33121738,4094.8,4094.7,3.9402]
[1759130896162,1.65211738,4094.8,4094.7,3.9402]
[1759130900468,0.43941,4094.9,4094.8,0.7324]
[1759130900663,0.66201,4094.9,4094.8,0.7324]
[1759130901163,0.98291,4094.9,4094.8,0.7324]
[1759130902458,1.20121,4094.9,4094.8,0.7324]
[1759130902967,1.55232738,4094.9,4094.8,0.7324]
[1759130903262,2.09152738,4094.9,4094.8,0.7324]
[1759130905172,2.60672693,4094.9,4094.8,0.7324]
[1759130907073,0.75,4094.8,4094.7,3.5246]
[1759130907274,0.75,4094.8,4094.7,3.2078]
[1759130907466,0.75,4094.8,4094.2,3.2078]
[1759130907467,1.18946,4094.4,4094.2,3.2078]
[1759130907662,1.64031738,4094.3,4094.2,3.9551]
[1759130907865,1.64031738,4094.3,4094.2,0.7473]
[1759130912668,1.64031738,4094.3,4094.2,0.5234]
[1759130915273,0.75,4094.3,4094.2,0.7473]
[1759130915572,1.64031738,4094.3,4094.2,0.7473]
[1759130920076,1.20621738,4094.3,4093.9,0.246]
[1759130920280,0.75,4094.0,4093.9,0.9933]
[1759130920575,1.1895,4094.0,4093.9,0.9933]
[1759130921175,0.75,4094.0,4093.9,0.9933]
[1759130921381,0.4341,4094.0,4093.9,0.9933]
[1759130921881,1.32441738,4094.0,4093.9,0.9933]
[1759130922684,1.76391738,4094.0,4093.9,1.43281]
[1759130923782,1.32441738,4094.0,4093.9,1.43281]
[1759130924482,1.10381738,4094.0,4093.9,1.43281]
[1759130926083,2.07981738,4094.0,4093.9,0.9933]
[1759130926284,2.07981738,4094.0,4093.9,1.43281]
[1759130926983,1.10381738,4094.0,4093.9,1.43281]
[1759130927179,1.20621738,4094.3,4094.2,0.43948]
[1759130927383,0.40724853,4094.5,4094.4,0.7473]
[1759130927888,0.2135,4094.5,4094.4,0.7473]
[1759130929281,0.89031738,4094.6,4094.5,1.31905]
[1759130929478,1.10381738,4094.6,4094.5,1.31905]
[1759130930288,1.61855628,4094.6,4094.5,1.31905]
[1759130930688,1.10381738,4094.6,4094.5,1.31905]
[1759130931188,1.41971738,4094.6,4094.5,1.31905]
[1759130933190,1.93449401,4094.6,4094.5,1.31905]
[1759130934994,0.72827663,4094.6,4094.5,1.31905]
[1759130935194,0.89031738,4094.8,4094.7,0.552]
[1759130935391,1.63152586,4094.8,4094.7,0.7709]
[1759130935693,1.93742586,4094.8,4094.7,0.7709]
[1759130936197,2.15462586,4094.8,4094.7,0.7709]
[1759130936687,2.59403586,4094.8,4094.7,0.7709]
[1759130937295,0.7494,4094.5,4094.4,0.552]
[1759130937502,1.63971738,4094.5,4094.4,0.552]
[1759130937792,1.63971738,4094.5,4094.4,0.7709]
[1759130938683,2.15475135,4094.5,4094.4,0.7709]
[1759130939192,1.18886,4094.4,4093.9,0.33]
[1759130939400,1.63971738,4094.0,4093.9,0.99151]
[1759130939695,1.63971738,4094.0,4093.9,1.21041]
[1759130940392,0.2263,4094.0,4093.9,1.21041]
[1759130940598,0.4435,4094.3,4094.2,0.88038]
[1759130940897,0.7494,4094.3,4094.2,0.7709]
[1759130941699,0.7494,4094.3,4094.2,0.552]
[1759130942296,0.7494,4094.3,4094.2,0.7709]
[1759130943193,0.4395,4094.0,4093.9,0.43951]
[1759130943498,2.04657104,4094.0,4093.8,3.2078]
[1759130943697,0.7494,4093.9,4093.8,3.2078]
[1759130943897,0.7494,4093.9,4093.8,3.7598]
[1759130944302,0.7494,4093.9,4093.8,3.9787]
[1759130945394,0.5322,4093.9,4093.8,3.9787]
[1759130945597,0.43942,4094.8,4094.5,0.1275]
[1759130945794,0.97162,4094.8,4094.7,0.7709]
[1759130945995,2.73486516,4094.8,4094.7,0.7709]
[1759130946296,2.73486516,4094.8,4094.6,0.33]
[1759130946489,1.26427412,4094.7,4094.6,0.552]
[1759130946694,0.7494,4094.7,4094.6,0.7709]
[1759130946889,0.7494,4094.7,4094.6,0.4409]
[1759130947098,0.7494,4094.7,4094.6,0.7709]
[1759130947596,0.3059,4095.0,4094.7,0.43943]
[1759130947802,1.56337104,4095.0,4094.9,0.7709]
[1759130948100,2.07816963,4095.0,4094.9,0.7709]
[1759130948402,2.29536963,4095.0,4094.9,0.7709]
[1759130959505,2.73475963,4095.0,4094.9,0.7709]
[1759130961908,2.98075963,4095.0,4094.9,0.7709]
[1759130962217,0.64491,4095.8,4095.7,0.7599]
[1759130962406,0.2056,4095.8,4095.7,0.7599]
[1759130962600,3.21028437,4096.0,4095.7,0.86931]
[1759130962804,3.41588437,4096.0,4095.9,0.7599]
[1759130963005,3.74438437,4096.0,4095.9,0.7599]
[1759130964408,3.41588437,4096.0,4095.9,0.7599]
[1759130964607,0.00248437,4096.0,4095.9,6.0059]
[1759130969615,0.5483,4096.8,4096.7,0.88401]
[1759130969825,0.5483,4096.8,4096.7,0.7641]
[1759130970519,0.43919,4097.0,4096.6,0.43922]
[1759130970520,0.43919,4097.0,4096.9,0.2194]
[1759130970724,1.19763247,4097.0,4096.9,0.7667238]
[1759130971419,1.19763247,4097.0,4096.9,0.5413238]
[1759130971914,1.33243247,4097.0,4096.9,0.0026238]
[1759130974018,2.36360351,4097.0,4096.9,0.3219238]
[1759130975220,2.36360351,4097.0,4096.9,0.5413238]
[1759130977715,2.36360351,4097.0,4096.9,0.0026238]
[1759130979117,1.19454,4096.4,4096.3,3.2078]
[1759130980116,1.19454,4096.4,4096.3,3.20988019]
[1759130982619,1.19454,4096.4,4096.3,0.00208019]
[1759130985629,0.4393,4095.9,4095.8,3.2078]
[1759130985834,2.47177104,4095.9,4095.8,3.2078]
[1759130986631,2.47177104,4095.9,4095.8,3.52943833]
[1759130987429,2.47177104,4095.9,4095.8,3.74883833]
[1759130988036,2.47177104,4095.9,4095.8,0.54103833]
[1759130991634,2.03247104,4095.9,4095.8,0.76643833]
[1759130992037,2.47177104,4095.9,4095.8,0.76643833]
[1759130994637,2.47177104,4095.9,4095.8,0.54103833]
[1759130997436,2.47177104,4095.9,4095.8,0.00233833]
[1759130998140,2.47177104,4095.9,4095.8,0.32203833]
[1759130998741,2.47177104,4095.9,4095.8,0.54913833]
[1759130999438,2.47177104,4095.9,4095.8,0.32203833]
[1759130999841,2.47177104,4095.9,4095.8,0.00233833]
[1759131000842,2.47177104,4095.9,4095.8,0.54913833]
[1759131001153,2.47177104,4095.9,4095.8,0.00233833]
[1759131001451,1.18605,4095.4,4095.3,3.2078]
[1759131001641,1.18609,4095.0,4094.9,0.5468]
[1759131001842,2.21726104,4095.0,4094.9,0.5468]
[1759131002036,1.77787104,4095.0,4094.9,0.5468]
[1759131002240,1.6374123,4095.0,4094.9,0.77342483]
[1759131002446,1.2226123,4095.3,4095.2,0.2271]
[1759131002637,1.22893,4096.0,4095.6,0.7716]
[1759131002638,0.98072,4095.7,4095.6,0.7716]
[1759131002944,1.94403479,4095.7,4095.6,0.7716]
[1759131003749,2.83474709,4095.7,4095.6,0.7716]
[1759131004946,2.58874709,4095.7,4095.6,0.7716]
[1759131005249,2.83474709,4095.7,4095.6,0.7716]
[1759131006238,0.43937,4095.3,4095.2,0.5468]
[1759131006541,1.3055123,4095.3,4095.2,0.7716]
[1759131006846,0.2095,4095.3,4095.2,0.7716]
[1759131007044,1.1002123,4095.3,4095.2,0.7716]
[1759131008135,0.8907123,4095.3,4095.2,0.7716]
[1759131008744,1.1002123,4095.6,4095.5,1.33804]
[1759131012944,3.4304,4095.9,4095.8,0.64881]
[1759131013144,0.5132594,4095.9,4095.8,1.19401]
[1759131013442,1.4314123,4096.2,4096.1,0.86058]
[1759131013648,0.73592201,4096.2,4096.1,1.19398]
[1759131013835,3.2078,4096.4,4096.3,0.43925]
[1759131014041,0.51338635,4096.4,4096.3,1.19395]
[1759131014247,0.246,4096.7,4096.6,0.7547]
[1759131014449,0.51326116,4096.7,4096.6,0.7547]
[1759131014650,0.8907123,4096.8,4096.7,1.19391]
[1759131015242,3.4304,4096.9,4096.8,0.7547]
[1759131015748,3.9643,4096.9,4096.8,0.7547]
[1759131016245,0.8907123,4097.8,4096.8,0.7547]
[1759131016246,1.73730487,4098.4,4098.3,0.2118]
[1759131016454,1.39650487,4099.6,4099.0,0.43896]
[1759131016652,0.673,4099.5,4099.4,1.3120123]
[1759131016842,0.673,4099.5,4099.4,4.5198123]
[1759131017044,0.3181,4099.9,4099.8,0.2118]
[1759131017242,0.54350267,4099.9,4099.8,1.31422607]
[1759131017844,0.54350267,4099.9,4099.8,0.00221377]
[1759131017845,0.75930267,4099.9,4099.8,0.00221377]
[1759131018043,1.65001497,4099.9,4099.8,0.00221377]
[1759131021345,6.65001497,4099.9,4099.8,0.00221377]
[1759131022148,0.1323,4099.0,4098.8,3.2078]
[1759131022354,0.7565,4098.9,4098.8,3.4173]
[1759131023352,0.7565,4098.9,4098.8,3.41951734]
[1759131024051,0.7565,4098.9,4098.8,3.63551734]
[1759131026952,0.3383,4099.8,4099.5,0.4349]
[1759131027256,0.5536,4099.8,4099.7,4.7503123]
[1759131027448,0.5536,4099.8,4099.7,3.8596]
[1759131030446,0.7802,4099.8,4099.7,3.6427]
[1759131030752,0.7802,4099.8,4099.7,3.2078]
[1759131031570,0.7802,4099.8,4099.7,3.4267]
[1759131033156,0.7802,4099.8,4099.7,3.2078]
[1759131034062,0.7802,4099.8,4098.8,0.65809734]
[1759131034063,0.43893,4099.3,4099.2,3.2078]
[1759131034262,2.1098423,4099.3,4099.2,3.2078]
[1759131035258,2.1098423,4099.3,4099.2,3.4267]
[1759131036157,2.1098423,4099.3,4099.2,0.2189]
[1759131038157,0.88088,4098.9,4098.8,0.43711734]
[1759131038463,2.1098923,4098.9,4098.8,0.00221734]
[1759131039159,2.1098923,4098.9,4098.8,0.22111734]
[1759131040571,1.21918,4098.9,4098.8,0.22111734]
[1759131040855,1.21918,4098.9,4098.8,0.43711734]
[1759131042355,1.21918,4098.9,4098.8,0.00221734]
[1759131045458,1.21918,4098.9,4098.8,0.22111734]
[1759131046254,1.21918,4098.9,4098.8,1.09360978]
[1759131046465,2.1098923,4098.9,4098.8,1.09360978]
[1759131046663,1.21918,4098.9,4098.8,1.30960978]
[1759131046966,0.4741,4099.5,4099.4,0.6518]
[1759131047162,0.4741,4099.5,4099.4,1.7915123]
[1759131047658,0.3383,4099.5,4099.4,1.7915123]
[1759131047863,0.3383,4099.5,4099.4,0.9008]
[1759131049658,0.3383,4099.5,4099.4,1.7915123]
[1759131052767,0.21810267,4099.9,4099.8,0.4349]
[1759131052965,0.21810267,4099.9,4099.8,1.31025599]
[1759131053359,0.55640267,4099.9,4099.8,1.31025599]
[1759131053760,0.55640267,4099.9,4099.8,1.52715599]
[1759131054063,0.78300267,4099.9,4099.8,1.31025599]
[1759131054262,0.78300267,4099.9,4099.8,1.09425599]
[1759131055658,0.78300267,4099.9,4099.8,0.87535599]
[1759131059261,0.4389,4099.6,4099.5,0.87535599]
[1759131059458,2.0617123,4099.6,4099.5,0.87535599]
[1759131059654,1.6228123,4099.6,4099.5,1.29805599]
[1759131059960,1.6228123,4099.6,4099.5,0.87535599]
[1759131061562,1.30671,4099.5,4099.3,0.65650432]
[1759131061767,0.7321,4099.2,4099.1,0.65650432]
[1759131061959,0.85255,4099.1,4099.0,0.65650432]
[1759131062162,2.0617623,4099.1,4099.0,0.65650432]
[1759131064375,2.19976168,4099.1,4099.0,0.65650432]
[1759131065364,0.3447,4099.0,4098.9,0.65650432]
[1759131065566,0.8678,4099.0,4098.9,0.65650432]
[1759131066262,1.17108,4098.9,4098.8,0.00221734]
[1759131066472,1.17108,4098.9,4098.0,0.2171]
[1759131066473,1.30682,4098.5,4098.4,0.65650432]
[1759131066672,0.7321,4098.1,4098.0,0.65650432]
[1759131066862,1.30687,4098.0,4097.9,0.2073]
[1759131067062,1.30687,4098.0,4097.9,0.86355082]
[1759131067263,0.8678,4098.0,4097.9,1.07895082]
[1759131067466,0.43905,4098.3,4097.9,1.5198139]
[1759131067662,0.82372,4098.5,4098.1,0.642]
[1759131067873,1.35122,4098.5,4098.4,0.4227]
[1759131068367,1.55582,4098.5,4098.4,0.4227]
[1759131072379,0.8678,4098.5,4098.4,0.4227]
[1759131072678,0.3185,4098.5,4098.4,0.642]
[1759131073072,0.43895,4099.2,4098.8,0.43899]
[1759131073270,0.3159,4099.2,4099.0,0.6469]
[1759131073470,0.5207,4099.1,4099.0,0.6469]
[1759131073870,0.3159,4099.4,4099.0,1.27771168]
[1759131074066,0.2048,4099.8,4099.7,0.4276]
[1759131074377,0.3159,4099.8,4099.7,0.6469]
[1759131074574,0.3159,4099.8,4099.7,1.3022652]
[1759131075377,0.3159,4099.8,4099.7,4.5100652]
[1759131075682,0.31870267,4099.9,4099.8,1.08578]
[1759131075871,0.00280267,4099.9,4099.8,7.64781399]
[1759131076177,3.5237,4100.6,4100.5,0.6469]
[1759131076377,3.5237,4100.6,4100.5,1.30187024]
[1759131076776,3.9501,4100.6,4100.5,0.2086]
[1759131076981,0.7423,4100.4,4100.3,1.08189366]
[1759131077277,0.7423,4100.4,4100.3,0.4576]
[1759131081279,0.7423,4100.4,4100.3,0.6766]
[1759131081689,0.7423,4100.4,4100.3,0.8959]
[1759131081989,0.3159,4100.4,4100.3,0.8959]
[1759131082185,0.3159,4100.5,4100.4,0.4279]
[1759131082494,0.3159,4100.5,4100.4,1.30097917]
[1759131082990,0.6546,4100.5,4100.4,1.30097917]
[1759131083286,0.3159,4100.5,4100.4,1.30097917]
[1759131083790,0.00314304,4100.6,4100.5,1.0857]
[1759131084200,0.31434304,4100.6,4100.5,1.0857]
[1759131084902,0.31434304,4100.6,4100.5,1.73947816]
[1759131085103,0.31434304,4100.6,4100.5,1.0857]
[1759131085798,0.00314304,4100.6,4100.5,1.0857]
[1759131086005,0.31434304,4100.6,4100.5,1.0857]
[1759131086300,0.00314304,4100.6,4100.5,1.0857]
[1759131086595,0.31434304,4100.6,4100.5,1.0857]
[1759131086902,0.53414304,4100.6,4100.5,1.0857]
[1759131089993,0.73984304,4100.6,4100.5,0.4276]
[1759131090199,0.73984304,4100.6,4100.5,0.2086]
[1759131092009,0.73984304,4100.6,4100.5,0.4134]
[1759131092812,0.73984304,4100.6,4100.5,0.6326]
[1759131093704,0.31434304,4100.6,4100.5,0.6326]
[1759131094007,0.00314304,4100.6,4100.5,0.6326]
[1759131094203,0.00314304,4100.6,4100.5,1.28637816]
[1759131094904,0.00314304,4100.6,4100.5,0.6326]
[1759131096202,0.00314304,4100.6,4100.5,1.28637816]
[1759131098204,0.00314304,4100.6,4100.5,1.6600669]
[1759131099207,0.00314304,4100.6,4100.5,2.53336056]
[1759131099507,0.00314304,4100.6,4100.5,2.78136056]
[1759131100103,0.53414304,4100.6,4100.5,0.8806]
[1759131100309,0.73984304,4100.6,4100.5,0.2086]
[1759131100610,0.73984304,4100.6,4100.5,1.32948128]
[1759131101006,0.00314304,4100.6,4100.5,1.3238]
[1759131102019,0.31434304,4100.6,4100.5,1.3238]
[1759131103112,0.31434304,4100.6,4100.5,3.07531863]
[1759131103413,0.73984304,4100.6,4100.5,2.85566776]
[1759131103816,0.73984304,4100.6,4100.5,2.65085689]
[1759131104217,0.73984304,4100.6,4100.5,1.1046]
[1759131106014,0.73984304,4100.6,4100.2,5.39047886]
[1759131106217,0.7367,4100.4,4100.3,1.10462]
[1759131107615,0.7367,4100.4,4100.3,0.213]
[1759131107818,0.7367,4100.4,4100.3,0.461]
[1759131108615,0.7367,4100.4,4100.3,0.248]
[1759131109012,0.7367,4100.4,4100.3,0.461]
[1759131110415,0.7367,4100.4,4100.3,0.248]
[1759131110618,0.7367,4100.4,4100.2,3.2078]
[1759131110619,1.17553,4100.3,4100.2,3.2078]
[1759131110910,1.17553,4100.3,4100.1,1.75382668]
[1759131110911,0.43885,4100.1,4099.9,1.75382668]
[1759131111116,0.4255,4099.8,4099.7,3.2078]
[1759131111317,0.7367,4099.8,4099.7,3.6688]
[1759131111814,0.7367,4099.8,4099.7,3.8736]
[1759131112019,0.3112,4099.8,4099.7,6.87409358]
[1759131112718,0.531,4099.8,4099.7,6.87409358]
[1759131114220,0.531,4099.8,4099.7,5.1202669]
[1759131114917,0.3112,4099.8,4099.7,5.1202669]
[1759131115223,0.3112,4099.8,4099.7,6.87409358]
[1759131116226,0.5274,4099.8,4099.7,5.1202669]
[1759131117422,0.3112,4099.8,4099.7,5.1202669]
[1759131117627,0.5262,4100.4,4100.3,0.4276]
[1759131117927,0.7513,4100.4,4100.3,1.98928212]
[1759131119322,1.19012,4100.4,4100.3,1.98928212]
[1759131119825,1.19012,4100.4,4100.3,0.248]
[1759131120226,0.7513,4100.4,4100.3,0.248]
[1759131120430,0.6523,4100.5,4100.4,0.43881]
[1759131120729,0.6523,4100.5,4100.4,1.08501]
[1759131123834,0.31,4100.5,4100.4,1.08501]
[1759131125337,0.00314304,4100.6,4100.4,0.86641]
[1759131125529,0.00314304,4100.6,4100.5,2.71027616]
[1759131126233,0.00314304,4100.6,4100.5,3.59820325]
[1759131126433,0.52934304,4100.6,4100.5,3.53370325]
[1759131127136,0.52934304,4100.6,4100.5,3.28570325]
[1759131127333,0.52934304,4100.6,4100.5,3.31410325]
[1759131127334,0.75444304,4100.6,4100.5,3.31410325]
[1759131127931,0.75444304,4100.6,4100.5,3.53270325]
[1759131128739,0.31314304,4100.6,4100.5,3.53270325]
[1759131130738,0.52934304,4100.6,4100.5,3.53270325]
[1759131130933,0.52934304,4100.6,4100.5,3.31410325]
[1759131131240,0.52934304,4100.6,4100.5,1.56252709]
[1759131131938,0.52934304,4100.6,4100.5,1.78112709]
[1759131132135,0.52934304,4100.6,4100.5,3.53270325]
[1759131133532,0.75444304,4100.6,4100.5,2.42617616]
[1759131133733,0.75444304,4100.6,4100.5,3.31410325]
[1759131134134,0.75444304,4100.6,4100.5,3.53290325]
[1759131134535,0.52934304,4100.6,4100.5,3.53290325]
[1759131135940,1.18713304,4100.6,4100.5,3.06710325]
[1759131136236,0.3322,4100.3,4100.2,3.2078]
[1759131136536,0.7739,4100.3,4100.2,3.4548]
[1759131136734,0.5549,4100.3,4100.2,5.65177616]
[1759131136938,0.7739,4100.3,4100.2,5.65177616]
[1759131137141,0.7739,4100.3,4100.2,3.9002]
[1759131137339,0.7739,4100.3,4100.2,5.65177616]
[1759131137939,0.7739,4100.3,4100.2,3.9002]